bitfinex-derivatives/quotes_ETHF0:USTF0_20251118
["timestamp","ask_amount","ask_price","bid_price","bid_amount"]
[1763472343994,0.00842027,3036.1,3036.0,3.67864005]
[1763472344396,0.00842027,3036.1,3036.0,3.96744005]
[1763472344595,0.00842027,3036.1,3036.0,3.67864005]
[1763472344793,0.00842027,3036.1,3036.0,7.26104005]
[1763472345193,0.00842027,3036.1,3036.0,3.96744005]
[1763472345391,0.00842027,3036.1,3036.0,3.67864005]
[1763472346302,0.00842027,3036.1,3036.0,3.96744005]
[1763472346597,3.2078,3036.5,3036.4,0.4668]
[1763472347105,3.2078,3037.0,3036.4,0.4668]
[1763472347495,3.21206448,3037.0,3036.4,0.4668]
[1763472347701,3.21700837,3037.0,3036.4,0.4668]
[1763472351408,3.21700837,3037.0,3035.5,4.60467776]
[1763472351409,0.4002,3035.6,3035.5,0.00494389]
[1763472352200,0.4002,3035.6,3035.5,0.00817598]
[1763472352511,3.2078,3035.7,3035.5,0.00817598]
[1763472353611,3.2078,3036.2,3036.0,0.2928]
[1763472354608,3.2078,3036.6,3036.0,0.2928]
[1763472355305,3.2078,3036.6,3036.5,0.4668]
[1763472355497,3.2078,3036.6,3036.0,3.5006]
[1763472356511,3.2078,3036.6,3036.5,0.4668]
[1763472356812,3.608,3036.6,3036.0,3.5006]
[1763472357704,3.2078,3036.6,3036.0,3.5006]
[1763472357914,3.2078,3036.6,3036.5,0.4654]
[1763472358108,3.21700837,3037.0,3036.6,0.2989]
[1763472360512,0.4707,3036.7,3036.1,40.8]
[1763472360718,3.2078,3036.9,3036.0,3.5006]
[1763472361822,3.2078,3036.9,3036.8,0.4654]
[1763472362220,0.00920837,3037.0,3036.8,0.4654]
[1763472362425,0.00920837,3037.0,3036.9,0.4654]
[1763472363717,0.4707,3036.6,3036.0,0.2928]
[1763472364511,3.2078,3036.7,3036.2,3.2078]
[1763472364712,2.81201752,3036.7,3036.2,3.2078]
[1763472365322,2.81201752,3036.7,3036.5,0.2989]
[1763472365720,3.2078,3036.9,3036.5,0.2989]
[1763472366313,3.2078,3036.9,3036.8,0.4654]
[1763472366513,3.2078,3036.9,3036.5,0.2989]
[1763472368922,0.4707,3036.6,3036.5,0.2989]
[1763472369122,0.4707,3036.6,3036.2,3.2078]
[1763472369728,3.2078,3036.9,3036.5,0.2989]
[1763472373017,3.2078,3036.9,3036.8,0.4654]
[1763472373624,3.6785,3036.9,3036.5,0.2989]
[1763472374721,0.4707,3036.6,3036.5,0.2989]
[1763472375126,3.2078,3036.9,3036.5,0.2989]
[1763472376132,0.4707,3036.6,3036.5,0.2989]
[1763472378029,0.4707,3036.6,3036.2,3.2078]
[1763472378326,3.2078,3036.3,3036.0,0.2928]
[1763472378526,0.4707,3036.1,3036.0,0.2928]
[1763472379530,0.00920837,3037.0,3036.5,0.2989]
[1763472379916,0.4707,3036.6,3036.5,0.2989]
[1763472380122,0.4707,3036.6,3036.3,3.2078]
[1763472380531,3.2078,3036.7,3036.5,0.7585]
[1763472380732,0.3863,3036.6,3036.5,0.2886]
[1763472381933,0.3863,3036.4,3036.3,3.2078]
[1763472382127,3.2078,3036.7,3036.3,3.6777]
[1763472383024,3.2078,3036.7,3036.5,0.2886]
[1763472383331,0.3863,3036.6,3036.3,3.2078]
[1763472384133,0.3863,3036.4,3036.3,3.2078]
[1763472384329,0.3863,3036.1,3036.0,0.2928]
[1763472384835,1.17816403,3037.0,3035.9,3.2078]
[1763472384836,0.3863,3036.0,3035.9,3.2078]
[1763472387036,3.2078,3036.3,3036.0,0.2886]
[1763472387434,0.3538,3036.1,3036.0,0.2886]
[1763472387842,0.3538,3035.6,3035.5,0.00817598]
[1763472388131,0.73912628,3036.0,3035.6,0.4598]
[1763472388335,3.2078,3036.2,3035.8,0.4598]
[1763472388522,0.73875379,3036.1,3035.8,0.4598]
[1763472388929,0.73875379,3036.1,3036.0,0.2767]
[1763472389132,3.2078,3036.2,3036.0,0.2767]
[1763472389540,0.3538,3036.1,3035.5,0.28487598]
[1763472389733,3.2078,3036.2,3036.0,0.2767]
[1763472389934,0.3538,3036.1,3036.0,0.2767]
[1763472390938,0.3538,3036.1,3035.5,0.28487598]
[1763472394332,0.3538,3036.1,3036.0,0.2767]
[1763472394633,3.5616,3036.2,3036.0,0.2767]
[1763472394837,0.3538,3036.1,3036.0,0.2767]
[1763472395135,3.2078,3036.2,3036.1,0.4598]
[1763472395530,3.5616,3036.2,3036.1,0.4598]
[1763472396037,0.3538,3036.1,3035.5,0.28487598]
[1763472396835,0.3538,3036.1,3036.0,0.7365]
[1763472397037,3.2078,3036.2,3036.1,0.4598]
[1763472397531,0.3538,3036.1,3035.5,0.28487598]
[1763472397734,3.16573751,3036.2,3035.5,0.28487598]
[1763472398144,3.2078,3035.8,3035.5,0.28487598]
[1763472399332,3.2078,3035.8,3035.7,0.4598]
[1763472403546,3.2078,3035.8,3035.5,0.28487598]
[1763472405041,3.2078,3035.8,3035.5,0.00817598]
[1763472405844,3.2078,3035.8,3035.5,0.00323209]
[1763472406051,1.90632396,3035.7,3034.5,0.2886]
[1763472406351,3.2078,3034.9,3034.5,0.2886]
[1763472406942,3.2078,3034.9,3034.5,0.29099312]
[1763472409548,0.00494389,3035.0,3034.5,0.29099312]
[1763472409747,0.00494389,3035.0,3034.9,0.4598]
[1763472411956,0.00494389,3035.0,3034.5,0.29099312]
[1763472412758,3.2078,3034.9,3034.5,0.29099312]
[1763472412954,3.2078,3034.9,3034.8,0.4598]
[1763472413265,3.2078,3035.3,3035.2,0.4598]
[1763472413954,3.2078,3035.8,3035.2,0.4598]
[1763472414360,3.2078,3035.8,3035.5,0.2767]
[1763472414361,3.21274389,3035.8,3035.5,0.2767]
[1763472417868,3.21274389,3035.8,3035.0,0.2767]
[1763472418159,3.2078,3035.3,3035.2,0.4377]
[1763472418763,3.2078,3035.3,3035.0,0.2767]
[1763472418964,0.00494389,3035.8,3035.0,0.2767]
[1763472418965,3.2078,3035.7,3035.0,0.2767]
[1763472420058,3.2078,3035.7,3035.5,0.2537]
[1763472420963,0.73798069,3035.6,3034.5,0.29099312]
[1763472421162,3.2078,3034.9,3034.5,0.29099312]
[1763472421469,3.2078,3034.9,3034.5,0.00239312]
[1763472421759,0.73784548,3034.8,3034.5,0.00239312]
[1763472421965,0.74046143,3034.8,3034.5,0.00239312]
[1763472422868,0.00261595,3034.8,3034.5,0.25609312]
[1763472424162,0.00261595,3034.8,3034.5,0.00239312]
[1763472424361,0.00261595,3034.8,3034.5,0.25609312]
[1763472424769,0.00261595,3034.8,3034.7,0.4377]
[1763472425255,0.00261595,3034.8,3034.5,0.25609312]
[1763472429175,0.00261595,3034.8,3034.7,0.4377]
[1763472431368,0.00261595,3034.8,3034.5,0.25609312]
[1763472431768,0.00261595,3034.8,3034.7,0.4377]
[1763472432377,3.2078,3035.3,3035.2,0.4377]
[1763472432885,3.2078,3035.7,3035.6,0.4377]
[1763472433170,0.00494389,3035.8,3035.7,0.4377]
[1763472433377,0.00725184,3035.8,3035.7,0.4377]
[1763472434074,0.00725184,3035.8,3035.5,0.2537]
[1763472434277,3.2078,3035.6,3035.0,0.2537]
[1763472434469,0.73812798,3035.5,3035.0,0.2537]
[1763472436880,3.2078,3035.6,3035.5,0.6914]
[1763472438672,0.00725184,3035.8,3035.5,0.6914]
[1763472438980,0.00725184,3035.8,3035.7,0.4377]
[1763472439881,0.00725184,3035.8,3035.5,0.2537]
[1763472441077,0.00725184,3035.8,3035.7,0.4206]
[1763472442976,3.2078,3036.4,3036.0,0.2304]
[1763472443973,3.21114329,3036.4,3036.0,0.2304]
[1763472445184,0.73771454,3036.3,3035.9,0.00494389]
[1763472445481,3.2078,3036.0,3035.9,0.00494389]
[1763472445679,3.2078,3036.0,3035.9,0.42554389]
[1763472447584,3.2078,3036.0,3035.9,0.00494389]
[1763472451881,3.2078,3036.0,3035.9,0.40284389]
[1763472452482,3.2078,3036.0,3035.9,0.00494389]
[1763472453182,3.2078,3036.0,3035.9,0.40284389]
[1763472454778,3.2078,3036.0,3035.9,0.00494389]
[1763472459087,3.2078,3036.0,3035.9,0.40284389]
[1763472459489,3.2078,3036.0,3035.9,0.00494389]
[1763472459781,3.2078,3036.0,3035.9,0.40284389]
[1763472465083,3.2078,3036.0,3035.9,0.00494389]
[1763472466289,3.2078,3036.0,3035.9,0.40284389]
[1763472466290,2.81194535,3036.0,3035.9,0.40284389]
[1763472467199,0.00334329,3036.4,3036.3,0.3979]
[1763472467387,0.74520078,3036.4,3036.3,0.3979]
[1763472470098,0.74520078,3036.4,3036.0,0.2317]
[1763472470800,3.2078,3036.1,3036.0,0.2317]
[1763472471004,3.94965749,3036.1,3036.0,0.2317]
[1763472472389,3.94965749,3036.1,3036.0,0.6296]
[1763472472792,3.2078,3036.1,3036.0,0.6296]
[1763472473795,0.00334329,3036.4,3036.3,0.3979]
[1763472481299,0.35264896,3036.8,3036.7,0.3595]
[1763472482100,3.2078,3036.9,3036.8,0.3595]
[1763472482397,3.21054345,3036.9,3036.8,0.3621372]
[1763472483507,0.00274345,3036.9,3036.8,0.3621372]
[1763472483711,0.22,3038.0,3037.6,0.3595]
[1763472484007,3.5695,3038.1,3037.5,0.21504389]
[1763472484509,0.3617,3037.6,3037.5,0.00494389]
[1763472485099,0.36574095,3037.6,3037.5,0.57454389]
[1763472485409,0.00404095,3037.6,3037.5,0.57454389]
[1763472487806,0.36574095,3037.6,3037.5,0.00494389]
[1763472488308,0.00404095,3037.6,3037.5,0.57454389]
[1763472488709,0.36574095,3037.6,3037.5,0.57454389]
[1763472489210,0.36574095,3037.6,3037.5,0.36444389]
[1763472489411,0.36574095,3037.6,3037.5,0.00494389]
[1763472490607,0.3617,3036.9,3036.8,0.0026372]
[1763472491811,3.2078,3037.0,3036.9,0.3595]
[1763472492115,0.00494389,3037.2,3037.1,0.3595]
[1763472492612,0.00494389,3037.2,3037.1,3.5673]
[1763472495418,0.00494389,3037.2,3037.1,0.3595]
[1763472499015,0.3617,3037.1,3037.0,3.2078]
[1763472499320,0.3617,3037.1,3036.8,0.0026372]
[1763472500622,0.3617,3037.1,3037.0,0.3595]
[1763472501223,0.00404095,3037.6,3037.5,0.5866]
[1763472501521,0.00404095,3037.6,3037.4,3.2078]
[1763472501522,0.3462,3037.5,3037.4,3.2078]
[1763472501718,0.3462,3037.5,3037.4,3.5825]
[1763472502021,3.2078,3038.2,3037.5,0.5866]
[1763472502518,0.3462,3037.6,3037.5,0.5866]
[1763472503121,0.34977598,3037.6,3037.5,0.5866]
[1763472503312,0.00357598,3037.6,3037.5,0.5866]
[1763472506521,3.2078,3038.2,3038.1,0.3747]
[1763472507117,0.3462,3038.2,3038.1,0.3747]
[1763472507625,0.00322059,3038.2,3038.1,0.3747]
[1763472508327,2.059e-05,3038.2,3038.1,0.3747]
[1763472508627,3.2078,3039.1,3038.9,0.3375]
[1763472508830,0.3556,3039.0,3038.9,0.3375]
[1763472509014,0.3556,3039.0,3038.7,0.00494389]
[1763472509218,0.3556,3038.8,3038.7,0.00494389]
[1763472509522,1.09385021,3038.8,3038.7,0.00494389]
[1763472510027,0.35895762,3038.8,3038.7,0.00494389]
[1763472510213,6.35895762,3038.8,3038.7,0.00494389]
[1763472510414,0.3556,3038.1,3038.0,0.2119]
[1763472510827,0.3556,3038.1,3037.5,41.0119]
[1763472511227,0.3556,3038.1,3037.4,3.2078]
[1763472511228,0.3556,3037.5,3037.4,3.2078]
[1763472511529,0.00494389,3037.8,3037.5,0.2139]
[1763472512028,0.73478966,3038.1,3037.5,0.2139]
[1763472512520,3.2078,3038.2,3037.5,0.2139]
[1763472512521,3.2078,3038.2,3038.0,0.5514]
[1763472512728,3.2078,3038.2,3038.1,0.3375]
[1763472514015,3.2078,3038.2,3038.0,0.2139]
[1763472514016,3.5634,3038.2,3038.0,0.2139]
[1763472514215,0.3556,3038.1,3038.0,0.2139]
[1763472514527,0.3556,3037.9,3037.5,0.2139]
[1763472515634,0.3556,3037.9,3037.8,0.3375]
[1763472515932,3.2078,3038.2,3038.1,0.3375]
[1763472516622,3.5634,3038.2,3038.1,0.3375]
[1763472517131,3.5634,3038.2,3038.0,0.2139]
[1763472517631,3.5634,3038.2,3038.1,0.3375]
[1763472517825,3.2078,3038.2,3038.1,0.3375]
[1763472518724,3.5634,3038.2,3038.1,0.3375]
[1763472519221,3.2078,3038.2,3038.1,0.3375]
[1763472519826,0.3556,3038.1,3037.8,3.2078]
[1763472520336,3.2078,3038.2,3038.1,0.3375]
[1763472520633,3.5634,3038.2,3038.1,0.3375]
[1763472520824,3.2078,3038.2,3038.1,0.3375]
[1763472521929,0.00335762,3038.8,3038.1,0.3375]
[1763472522126,0.00335762,3038.8,3038.3,3.2078]
[1763472522430,0.00335762,3038.8,3038.3,3.5453]
[1763472523336,0.00335762,3038.8,3038.7,0.3375]
[1763472524027,0.35895762,3038.8,3038.5,0.2139]
[1763472524228,0.3556,3038.6,3038.5,0.2139]
[1763472524629,0.3556,3038.6,3038.5,0.5514]
[1763472524832,0.3556,3038.4,3038.3,3.2078]
[1763472525336,0.00335762,3038.8,3038.3,3.5453]
[1763472526034,0.3556,3038.4,3038.3,3.5453]
[1763472526433,0.00335762,3038.8,3038.3,3.5453]
[1763472530435,0.3556,3038.4,3038.3,3.2078]
[1763472530632,0.3556,3038.4,3038.3,3.5453]
[1763472531836,0.00335762,3038.8,3038.7,0.3375]
[1763472532137,3.2078,3039.3,3038.7,0.3375]
[1763472532440,0.73459425,3039.2,3038.7,0.34244389]
[1763472533130,0.73804045,3039.2,3038.7,0.34244389]
[1763472536540,0.3556,3038.8,3038.7,0.34244389]
[1763472538040,0.0034462,3039.2,3038.7,0.34244389]
[1763472538240,0.7383525,3039.2,3038.7,0.34244389]
[1763472539443,0.3196,3038.8,3038.7,0.34244389]
[1763472539636,0.3196,3038.8,3038.7,0.00494389]
[1763472540435,1.0543405,3038.8,3038.7,0.00494389]
[1763472540843,0.3196,3037.6,3037.5,3.4217]
[1763472541136,0.3196,3037.6,3037.5,3.7549]
[1763472541735,3.2078,3038.1,3037.5,3.7549]
[1763472541935,0.00494389,3037.9,3037.8,0.3332]
[1763472542243,3.13673891,3038.1,3038.0,0.1948]
[1763472542438,3.55150676,3038.1,3038.0,0.528]
[1763472542635,2.81713891,3038.1,3038.0,0.528]
[1763472543434,3.13673891,3038.1,3038.0,0.1948]
[1763472543940,3.13673891,3038.1,3037.5,3.4217]
[1763472545646,2.81713891,3038.1,3038.0,0.528]
[1763472546442,3.2078,3038.7,3038.0,0.528]
[1763472546635,0.3196,3038.1,3038.0,0.528]
[1763472547340,0.3196,3038.0,3037.9,3.2078]
[1763472547544,0.3196,3038.0,3037.9,3.541]
[1763472547745,0.3196,3038.0,3037.9,3.2078]
[1763472550444,0.3196,3037.5,3037.4,3.2078]
[1763472550642,0.3196,3037.5,3037.4,3.541]
[1763472550841,0.3196,3037.5,3037.4,3.2078]
[1763472551334,0.3196,3037.5,3037.4,3.541]
[1763472552550,0.3196,3037.5,3037.4,3.2078]
[1763472552844,0.3196,3037.5,3037.4,3.541]
[1763472553241,3.2078,3038.3,3037.4,3.541]
[1763472553441,0.73349717,3038.2,3037.5,0.1948]
[1763472553642,0.3196,3037.6,3037.5,0.528]
[1763472554540,6.0888,3038.3,3037.5,0.1948]
[1763472554747,0.73308661,3038.2,3037.5,0.1948]
[1763472555451,0.3196,3037.6,3037.5,0.528]
[1763472555842,3.2078,3038.3,3037.5,0.528]
[1763472556043,0.73310053,3038.2,3037.5,0.528]
[1763472556442,0.3196,3037.6,3037.5,0.528]
[1763472557843,0.3196,3037.5,3037.4,3.541]
[1763472560650,0.3196,3037.5,3037.4,3.2078]
[1763472561646,0.3196,3037.5,3037.4,3.503]
[1763472565055,3.2078,3038.3,3037.5,0.1798]
[1763472565352,0.3128,3037.6,3037.5,0.475]
[1763472566255,0.3128,3037.5,3037.4,3.2078]
[1763472566554,0.3128,3037.5,3037.4,3.503]
[1763472568155,4.37675566,3038.3,3037.5,0.1862]
[1763472568453,0.3092,3037.5,3037.4,3.4945]
[1763472568649,4.68595566,3038.3,3038.2,0.2867]
[1763472568855,0.3092,3038.1,3038.0,0.4729]
[1763472569263,1.04411908,3038.1,3038.0,0.4729]
[1763472570347,1.04411908,3038.1,3037.5,0.1862]
[1763472570548,0.3092,3038.1,3037.5,0.1862]
[1763472573257,0.73553196,3038.0,3037.5,0.1862]
[1763472573460,3.2078,3038.3,3037.5,0.4729]
[1763472573659,0.3092,3037.6,3037.5,0.4729]
[1763472574152,1.04471489,3037.6,3037.5,0.1862]
[1763472574560,1.04471489,3037.6,3037.2,0.00494389]
[1763472574756,0.73551489,3037.5,3037.2,0.00494389]
[1763472574956,0.3092,3037.3,3037.2,0.29164389]
[1763472576364,4.68595566,3037.9,3037.8,0.2867]
[1763472576562,4.25233623,3037.9,3037.8,0.2867]
[1763472576761,0.3092,3037.6,3037.5,0.4729]
[1763472578861,0.73523899,3037.8,3037.2,0.29164389]
[1763472579062,0.3092,3037.3,3037.2,0.29164389]
[1763472579564,4.37675566,3037.9,3037.2,0.29164389]
[1763472579759,0.73533247,3037.8,3037.2,0.29164389]
[1763472579964,0.3092,3037.3,3037.2,0.29164389]
[1763472580169,4.29028282,3037.9,3037.2,0.29164389]
[1763472580463,0.1404,3037.3,3037.2,0.00494389]
[1763472580764,0.1404,3037.1,3037.0,3.4197]
[1763472581264,0.1404,3037.1,3037.0,3.7064]
[1763472582460,0.87525611,3037.1,3037.0,3.4197]
[1763472583370,3.21274389,3037.4,3037.3,0.2867]
[1763472583770,0.00494389,3037.4,3037.3,0.2867]
[1763472590268,9.21274389,3037.4,3037.0,0.4986]
[1763472590574,3.21274389,3037.4,3037.3,0.2867]
[1763472592070,4.389e-05,3037.4,3037.3,0.2867]
[1763472592868,2.81219972,3037.8,3037.7,0.2867]
[1763472594275,0.1453,3037.8,3037.7,0.2867]
[1763472594472,0.1453,3038.1,3038.0,0.1862]
[1763472594776,0.73347194,3038.1,3038.0,0.4729]
[1763472595279,3.2078,3038.2,3038.1,0.2867]
[1763472595971,3.2078,3038.6,3038.5,0.4729]
[1763472596176,3.94134104,3038.6,3038.5,0.4729]
[1763472596368,3.3531,3038.6,3038.5,0.1862]
[1763472596776,0.1453,3038.3,3038.2,0.29164389]
[1763472598174,0.1453,3038.3,3038.2,0.00494389]
[1763472598971,0.1453,3038.3,3038.2,4.389e-05]
[1763472599178,1.74966375,3038.4,3038.0,0.1755]
[1763472599371,3.2078,3038.1,3038.0,0.4424]
[1763472599572,4.02644118,3038.1,3038.0,0.4424]
[1763472599779,4.02644118,3038.1,3038.0,0.1755]
[1763472600474,0.0863,3037.8,3037.7,0.00494389]
[1763472600674,0.0813,3037.3,3036.9,1.77073387]
[1763472600871,0.0813,3036.7,3036.4,0.94666131]
[1763472601070,0.0813,3036.4,3035.6,3.2078]
[1763472601677,3.2891,3036.1,3035.5,0.1755]
[1763472601871,0.81608758,3036.0,3035.9,0.00494389]
[1763472602480,0.0813,3035.6,3035.5,0.17849048]
[1763472602683,0.0813,3035.6,3035.0,0.1755]
[1763472602684,0.0813,3035.1,3035.0,0.1755]
[1763472602979,3.0452,3035.2,3035.0,0.1755]
[1763472603681,3.0452,3035.2,3035.0,0.17914236]
[1763472603878,3.2078,3036.0,3035.5,0.4424]
[1763472605379,3.2078,3036.0,3035.5,0.1755]
[1763472606888,3.2078,3036.0,3035.9,0.2669]
[1763472607388,3.2078,3036.0,3035.5,0.1755]
[1763472607688,0.00334514,3036.1,3035.0,0.17914236]
[1763472607689,3.2078,3035.6,3035.0,0.17914236]
[1763472607878,3.2078,3035.2,3035.0,0.17914236]
[1763472608076,3.2078,3035.2,3035.1,0.2669]
[1763472608585,3.2078,3035.6,3035.1,0.2669]
[1763472608887,3.2078,3035.6,3035.0,0.17914236]
[1763472609978,3.2078,3035.6,3035.0,0.00364236]
[1763472610186,0.00334514,3036.1,3034.8,0.00494389]
[1763472610187,3.2078,3035.2,3034.8,0.00494389]
[1763472610487,3.2078,3035.2,3035.0,0.1755]
[1763472610688,3.2078,3035.2,3035.1,0.2669]
[1763472610985,3.2078,3035.2,3035.0,0.1755]
[1763472611185,3.2078,3035.2,3035.1,0.2669]
[1763472611988,3.2078,3035.2,3035.0,0.17958412]
[1763472612490,3.2078,3035.2,3035.1,0.2669]
[1763472612690,3.2078,3035.2,3035.0,0.17958412]
[1763472612993,3.2078,3035.2,3035.1,0.2669]
[1763472613487,3.2078,3035.3,3035.0,0.17958412]
[1763472613686,3.2078,3035.3,3035.0,0.00408412]
[1763472616284,3.2078,3035.3,3034.8,0.00494389]
[1763472616483,3.2078,3034.9,3034.8,0.00494389]
[1763472616692,3.2078,3034.9,3034.2,3.2078]
[1763472616891,3.2078,3034.5,3034.0,0.1755]
[1763472617194,3.2078,3034.1,3034.0,0.00400531]
[1763472618091,9.2078,3034.1,3033.7,0.00494389]
[1763472618290,3.29600001,3034.0,3032.9,3.2078]
[1763472618490,3.2078,3033.5,3032.9,3.2078]
[1763472619095,3.21055598,3033.5,3033.0,0.17798152]
[1763472619695,3.2078,3033.1,3033.0,0.00248152]
[1763472620094,3.2078,3033.1,3033.0,0.17798152]
[1763472620283,3.2078,3033.1,3033.0,0.00248152]
[1763472620496,3.2078,3033.1,3033.0,0.17798152]
[1763472620690,3.2078,3033.1,3033.0,0.44488152]
[1763472620886,0.00275598,3033.5,3033.0,0.44488152]
[1763472620887,0.00275598,3033.5,3033.4,0.2669]
[1763472621088,0.00494389,3034.4,3034.3,0.2669]
[1763472621295,1.16088153,3036.3,3034.3,0.2669]
[1763472621296,3.2078,3035.9,3034.3,9.4747]
[1763472621495,0.2827,3035.1,3035.0,3.2078]
[1763472622096,3.2078,3035.9,3035.0,3.6502]
[1763472622496,0.0027581,3035.9,3035.8,3.4747]
[1763472622794,11.50961477,3037.5,3035.8,3.4747]
[1763472622795,0.00494389,3036.2,3036.1,0.3032]
[1763472623699,0.00494389,3036.2,3035.1,40.80494389]
[1763472623700,0.3057,3035.2,3035.1,0.00494389]
[1763472624105,0.1938,3034.8,3034.0,3.2078]
[1763472624403,3.2078,3034.7,3034.0,3.2078]
[1763472624803,3.2078,3034.7,3034.0,3.2110017]
[1763472625302,3.21274389,3034.7,3034.0,3.21594559]
[1763472629496,3.21274389,3034.7,3034.6,0.3376]
[1763472629903,3.21274389,3034.7,3034.0,3.21594559]
[1763472629904,9.53494389,3034.7,3034.0,3.21594559]
[1763472630094,0.74460472,3034.6,3034.0,3.21594559]
[1763472630497,0.00494389,3034.7,3034.6,0.3376]
[1763472630702,0.3222,3034.6,3034.3,3.2078]
[1763472630902,0.00494389,3034.7,3034.3,3.2078]
[1763472631402,0.00494389,3034.7,3034.6,0.3376]
[1763472632202,0.00494389,3034.7,3034.6,6.3376]
[1763472632713,0.00494389,3034.7,3034.6,0.3376]
[1763472635301,3.2078,3035.5,3034.6,0.3376]
[1763472635512,3.2078,3035.5,3034.8,3.4058]
[1763472636402,3.21274389,3035.5,3035.4,0.3376]
[1763472636600,0.00494389,3035.5,3035.4,0.3376]
[1763472636798,0.00494389,3035.5,3035.4,0.5356]
[1763472638206,0.00494389,3035.5,3035.4,0.3376]
[1763472638507,0.32714389,3035.5,3035.2,3.2078]
[1763472639010,0.00494389,3035.5,3035.2,3.2078]
[1763472640715,0.00494389,3035.5,3035.4,0.3376]
[1763472641010,0.00494389,3035.5,3035.4,0.5356]
[1763472641207,0.00494389,3035.5,3035.4,0.3376]
[1763472641411,0.00494389,3035.5,3035.4,0.5356]
[1763472642011,0.00494389,3035.5,3034.7,3.2078]
[1763472642012,0.3222,3035.2,3034.7,3.2078]
[1763472642211,0.74644881,3035.1,3034.7,3.2078]
[1763472642413,3.30214389,3035.5,3034.7,3.2078]
[1763472642713,0.74630384,3035.4,3034.7,3.2078]
[1763472645309,3.30214389,3035.5,3034.7,3.2078]
[1763472647814,3.21274389,3035.5,3034.7,3.2078]
[1763472648011,3.41104389,3035.5,3034.7,3.2078]
[1763472649412,0.74667032,3035.4,3034.7,3.2078]
[1763472650118,3.41104389,3035.5,3034.7,3.2078]
[1763472650318,0.7465257,3035.4,3034.7,3.2078]
[1763472651718,0.3222,3034.8,3034.7,3.2078]
[1763472651923,3.41104389,3035.5,3034.7,3.2078]
[1763472652221,0.74758684,3035.4,3034.7,3.2078]
[1763472653620,0.3222,3034.8,3034.7,3.2078]
[1763472653823,0.3222,3034.8,3034.3,3.2078]
[1763472654023,0.74696018,3034.7,3034.3,3.2078]
[1763472654227,3.2078,3035.1,3034.6,0.3376]
[1763472654414,0.74689532,3035.0,3034.6,0.3376]
[1763472655919,0.74689532,3035.0,3034.9,0.3376]
[1763472656320,1.06909532,3035.0,3034.9,0.3376]
[1763472656514,1.06909532,3035.0,3034.5,0.198]
[1763472656720,0.3222,3035.0,3034.9,0.3376]
[1763472656915,1.07192537,3035.0,3034.5,0.198]
[1763472657127,0.3222,3035.0,3034.5,0.198]
[1763472657317,3.2078,3035.1,3034.5,0.198]
[1763472657517,0.7497416,3035.0,3034.5,0.198]
[1763472657928,0.7497416,3035.0,3034.9,0.3055]
[1763472658425,1.0404416,3035.0,3034.5,0.198]
[1763472658626,0.3574,3035.0,3034.3,3.2078]
[1763472658926,0.2907,3035.0,3034.3,3.2078]
[1763472660422,3.2078,3035.1,3034.3,3.2078]
[1763472660624,0.75025053,3035.0,3034.3,3.2078]
[1763472661225,0.2907,3034.4,3034.3,3.2078]
[1763472661431,0.2907,3034.4,3034.3,3.5133]
[1763472661828,0.0667,3035.0,3034.3,3.2078]
[1763472662034,0.0667,3035.0,3034.0,0.18254559]
[1763472662035,0.2907,3034.4,3034.0,0.18254559]
[1763472662327,0.2907,3034.1,3034.0,0.00814559]
[1763472662523,0.2907,3034.1,3034.0,0.48804559]
[1763472662826,3.2078,3034.6,3034.5,0.4799]
[1763472663031,0.00494389,3035.5,3034.5,0.4799]
[1763472663032,3.2078,3035.1,3034.5,0.4799]
[1763472663332,4.389e-05,3035.5,3035.4,0.3055]
[1763472663628,0.00258585,3036.2,3036.1,0.3055]
[1763472663823,4.36868153,3037.0,3036.5,0.1744]
[1763472663824,0.75099955,3036.9,3036.5,0.1744]
[1763472664020,3.4985,3036.6,3036.0,3.3822]
[1763472664225,3.4985,3036.6,3035.5,1.9496427]
[1763472664226,3.4985,3036.1,3035.5,0.1744]
[1763472664424,3.2078,3035.7,3035.5,0.17934389]
[1763472664831,3.21106023,3035.7,3035.5,0.18257256]
[1763472666427,3.21106023,3035.7,3035.6,0.3055]
[1763472667228,0.00326023,3035.7,3035.6,3.5133]
[1763472668029,0.00494389,3036.1,3036.0,0.4799]
[1763472669034,0.00782005,3036.1,3036.0,0.4799]
[1763472671227,3.2078,3037.0,3036.5,0.1744]
[1763472671430,0.74939388,3036.9,3036.8,0.3055]
[1763472671626,0.74939388,3036.9,3036.5,0.1744]
[1763472671627,1.16088153,3037.7,3036.9,0.3055]
[1763472671831,3.2078,3037.9,3037.5,0.1744]
[1763472672029,3.2078,3038.3,3038.2,0.3055]
[1763472672235,0.00394687,3038.3,3038.2,0.30977753]
[1763472672629,0.29464687,3038.3,3038.2,0.00427753]
[1763472673333,0.00394687,3038.3,3038.2,0.30977753]
[1763472673732,0.00394687,3038.3,3038.2,0.00427753]
[1763472675127,0.00394687,3038.3,3038.2,3.51757753]
[1763472675331,3.2078,3039.1,3038.5,0.3055]
[1763472676334,3.21540762,3039.1,3038.5,0.3055]
[1763472677834,3.21540762,3039.1,3038.6,3.2078]
[1763472678427,0.00760762,3039.1,3038.6,3.2078]
[1763472679328,0.00760762,3039.1,3039.0,0.4799]
[1763472679832,0.2907,3038.3,3038.2,0.00427753]
[1763472680042,0.2907,3038.3,3037.0,0.1744]
[1763472680043,0.4238,3038.0,3037.0,3.3822]
[1763472680232,3.2078,3037.8,3037.0,3.3822]
[1763472680630,3.2078,3037.8,3037.0,0.1744]
[1763472681134,3.2078,3037.3,3037.1,0.00494389]
[1763472681528,0.00494389,3037.5,3037.1,0.00494389]
[1763472681529,0.00494389,3037.5,3037.4,0.2728]
[1763472682631,0.00494389,3037.5,3037.2,3.2078]
[1763472683545,0.2811,3037.1,3037.0,0.00373289]
[1763472683839,0.2811,3037.1,3036.5,0.1744]
[1763472684041,3.2078,3036.9,3036.5,0.1744]
[1763472684626,3.21172676,3036.9,3036.5,0.17752406]
[1763472685242,3.21172676,3036.9,3036.8,0.2728]
[1763472685630,3.21172676,3036.9,3036.5,0.17752406]